{"text_format":"1","workbook":"xlsx","n_sheets":5,"sheets":["工资明细表","示例文件","邮件内容HTML模板","教程，如何配置OUTLOOK（以QQ邮箱例）","教程，如何制作HTML模板"],"not_rendered":{"charts":0,"images":1,"macros":1,"external_links":0,"defined_names":4,"comments":0,"pivot_tables":0},"unopened":[],"bounds":{"document_bytes":16777216,"sheet_cells":100000,"rows_first":2000,"rows_last":500,"rows_between":2000,"halvings":0,"cell_chars":16384,"cell_head_chars":4096},"cells_cut":0,"cells_raw":0,"read":"whole","date_system":"1900"}

{"sheet":"工资明细表","index":0,"n_rows":14,"n_cols":18,"rows_kept":14,"cut":false,"hidden":false,"merged":[[2,17,3,17],[0,0,0,11],[2,16,3,16],[2,11,3,11],[2,1,3,1],[2,3,2,6],[2,7,2,10],[2,12,3,12],[2,14,3,14],[2,2,3,2],[2,15,3,15],[2,13,3,13]]}
["深圳市XXX公司工资发放表"]
[]
["序","姓名","月度","应    发    数",null,null,null,"扣   除   数",null,null,null,"实发工资","收件人邮箱","邮件标题*","邮件内容*","附件","是否发邮件","成功标志"]
["号",null,null,"基本工资","岗位工资","绩效工资","应发小计","养老险","公积金","个税","扣款小计"]
[null,"【姓名】","【月度】","【基本工资】","【岗位工资】","【绩效工资】","【应发小计】","【养老险】","【公积金】","【个税】","【扣款小计】","【实发工资】"]
[null,null,null,null,null,null,null,null,null,null,null,null,null,{"$f":"B6&C6&\"工资单\"","v":"工资单"},{"$f":"createhtml(邮件内容HTML模板!$B$1,工资明细表!$B$5:$L$5,工资明细表!B6)","v":"<table border=\"1\" cellpadding=\"0\" cellspacing=\"0\" class=\"\" bordercolor=\"#000000\">\n <tbody>\n  <tr>\n   <td rowspan=\"2\" height=\"50\" class=\"xl66\" width=\"89\" style=\"text-align:center;\">\n    <strong>姓</strong><strong>名</strong>\n   </td>\n   <td rowspan=\"2\" class=\"xl66\" width=\"89\" style=\"text-align:center;\">\n    <strong>月度</strong>\n   </td>\n   <td colspan=\"4\" class=\"xl66\" width=\"336\" style=\"text-align:center;\">\n    <strong>应</strong><span class=\"font7\"><strong>&nbsp;&nbsp;&nbsp; </strong></span><span class=\"font6\"><strong>发</strong></span><span class=\"font7\"><strong>&nbsp;&nbsp;&nbsp; </strong></span><span class=\"font6\"><strong>数</strong></span>\n   </td>\n   <td colspan=\"4\" class=\"xl66\" width=\"307\" style=\"text-align:center;\">\n    <strong>扣</strong><span class=\"font7\"><strong>&nbsp;&nbsp; </strong></span><span class=\"font6\"><strong>除</strong></span><span class=\"font7\"><strong>&nbsp;&nbsp; </strong></span><span class=\"font6\"><strong>数</strong></span>\n   </td>\n   <td rowspan=\"2\" class=\"xl70\" width=\"90\" style=\"text-align:center;\">\n    <strong>实发工资</strong>\n   </td>\n  </tr>\n  <tr>\n   <td height=\"25\" class=\"xl66\" style=\"text-align:center;\">\n    <strong>基本工资</strong>\n   </td>\n   <td class=\"xl66\" style=\"text-align:center;\">\n    <strong>岗位工资</strong>\n   </td>\n   <td class=\"xl66\" style=\"text-align:center;\">\n    <strong>绩效工资</strong>\n   </td>\n   <td class=\"xl66\" style=\"text-align:center;\">\n    <strong>应发小计</strong>\n   </td>\n   <td class=\"xl66\" style=\"text-align:center;\">\n    <strong>养老险</strong>\n   </td>\n   <td class=\"xl66\" style=\"text-align:center;\">\n    <strong>公积金</strong>\n   </td>\n   <td class=\"xl66\" style=\"text-align:center;\">\n    <strong>个税</strong>\n   </td>\n   <td class=\"xl66\" style=\"text-align:center;\">\n    <strong>扣款小计</strong>\n   </td>\n  </tr>\n  <tr>\n   <td height=\"25\" class=\"xl69\" style=\"text-align:center;\">\n    \n   </td>\n   <td class=\"xl69\" style=\"text-align:center;\">\n    \n   </td>\n   <td class=\"xl69\" style=\"text-align:center;\">\n    \n   </td>\n   <td class=\"xl69\" style=\"text-align:center;\">\n    \n   </td>\n   <td class=\"xl69\" style=\"text-align:center;\">\n    \n   </td>\n   <td class=\"xl69\" style=\"text-align:center;\">\n    \n   </td>\n   <td class=\"xl69\" style=\"text-align:center;\">\n    \n   </td>\n   <td class=\"xl69\" style=\"text-align:center;\">\n    \n   </td>\n   <td class=\"xl69\" style=\"text-align:center;\">\n    \n   </td>\n   <td class=\"xl69\" style=\"text-align:center;\">\n    \n   </td>\n   <td class=\"xl68\" style=\"text-align:center;\">\n    \n   </td>\n  </tr>\n </tbody>\n</table>\n<br />"},null,"是"]
[null,null,null,null,null,null,null,null,null,null,null,null,null,{"$f":"B7&C7&\"工资单\"","v":"工资单"},{"$f":"createhtml(邮件内容HTML模板!$B$1,工资明细表!$B$5:$L$5,工资明细表!B7)","v":"<table border=\"1\" cellpadding=\"0\" cellspacing=\"0\" class=\"\" bordercolor=\"#000000\">\n <tbody>\n  <tr>\n   <td rowspan=\"2\" height=\"50\" class=\"xl66\" width=\"89\" style=\"text-align:center;\">\n    <strong>姓</strong><strong>名</strong>\n   </td>\n   <td rowspan=\"2\" class=\"xl66\" width=\"89\" style=\"text-align:center;\">\n    <strong>月度</strong>\n   </td>\n   <td colspan=\"4\" class=\"xl66\" width=\"336\" style=\"text-align:center;\">\n    <strong>应</strong><span class=\"font7\"><strong>&nbsp;&nbsp;&nbsp; </strong></span><span class=\"font6\"><strong>发</strong></span><span class=\"font7\"><strong>&nbsp;&nbsp;&nbsp; </strong></span><span class=\"font6\"><strong>数</strong></span>\n   </td>\n   <td colspan=\"4\" class=\"xl66\" width=\"307\" style=\"text-align:center;\">\n    <strong>扣</strong><span class=\"font7\"><strong>&nbsp;&nbsp; </strong></span><span class=\"font6\"><strong>除</strong></span><span class=\"font7\"><strong>&nbsp;&nbsp; </strong></span><span class=\"font6\"><strong>数</strong></span>\n   </td>\n   <td rowspan=\"2\" class=\"xl70\" width=\"90\" style=\"text-align:center;\">\n    <strong>实发工资</strong>\n   </td>\n  </tr>\n  <tr>\n   <td height=\"25\" class=\"xl66\" style=\"text-align:center;\">\n    <strong>基本工资</strong>\n   </td>\n   <td class=\"xl66\" style=\"text-align:center;\">\n    <strong>岗位工资</strong>\n   </td>\n   <td class=\"xl66\" style=\"text-align:center;\">\n    <strong>绩效工资</strong>\n   </td>\n   <td class=\"xl66\" style=\"text-align:center;\">\n    <strong>应发小计</strong>\n   </td>\n   <td class=\"xl66\" style=\"text-align:center;\">\n    <strong>养老险</strong>\n   </td>\n   <td class=\"xl66\" style=\"text-align:center;\">\n    <strong>公积金</strong>\n   </td>\n   <td class=\"xl66\" style=\"text-align:center;\">\n    <strong>个税</strong>\n   </td>\n   <td class=\"xl66\" style=\"text-align:center;\">\n    <strong>扣款小计</strong>\n   </td>\n  </tr>\n  <tr>\n   <td height=\"25\" class=\"xl69\" style=\"text-align:center;\">\n    \n   </td>\n   <td class=\"xl69\" style=\"text-align:center;\">\n    \n   </td>\n   <td class=\"xl69\" style=\"text-align:center;\">\n    \n   </td>\n   <td class=\"xl69\" style=\"text-align:center;\">\n    \n   </td>\n   <td class=\"xl69\" style=\"text-align:center;\">\n    \n   </td>\n   <td class=\"xl69\" style=\"text-align:center;\">\n    \n   </td>\n   <td class=\"xl69\" style=\"text-align:center;\">\n    \n   </td>\n   <td class=\"xl69\" style=\"text-align:center;\">\n    \n   </td>\n   <td class=\"xl69\" style=\"text-align:center;\">\n    \n   </td>\n   <td class=\"xl69\" style=\"text-align:center;\">\n    \n   </td>\n   <td class=\"xl68\" style=\"text-align:center;\">\n    \n   </td>\n  </tr>\n </tbody>\n</table>\n<br />"},null,"是"]
[null,null,null,null,null,null,null,null,null,null,null,null,null,"工资单",{"$f":"createhtml(邮件内容HTML模板!$B$1,工资明细表!$B$5:$L$5,工资明细表!B8)","v":"<table border=\"1\" cellpadding=\"0\" cellspacing=\"0\" class=\"\" bordercolor=\"#000000\">\n <tbody>\n  <tr>\n   <td rowspan=\"2\" height=\"50\" class=\"xl66\" width=\"89\" style=\"text-align:center;\">\n    <strong>姓</strong><strong>名</strong>\n   </td>\n   <td rowspan=\"2\" class=\"xl66\" width=\"89\" style=\"text-align:center;\">\n    <strong>月度</strong>\n   </td>\n   <td colspan=\"4\" class=\"xl66\" width=\"336\" style=\"text-align:center;\">\n    <strong>应</strong><span class=\"font7\"><strong>&nbsp;&nbsp;&nbsp; </strong></span><span class=\"font6\"><strong>发</strong></span><span class=\"font7\"><strong>&nbsp;&nbsp;&nbsp; </strong></span><span class=\"font6\"><strong>数</strong></span>\n   </td>\n   <td colspan=\"4\" class=\"xl66\" width=\"307\" style=\"text-align:center;\">\n    <strong>扣</strong><span class=\"font7\"><strong>&nbsp;&nbsp; </strong></span><span class=\"font6\"><strong>除</strong></span><span class=\"font7\"><strong>&nbsp;&nbsp; </strong></span><span class=\"font6\"><strong>数</strong></span>\n   </td>\n   <td rowspan=\"2\" class=\"xl70\" width=\"90\" style=\"text-align:center;\">\n    <strong>实发工资</strong>\n   </td>\n  </tr>\n  <tr>\n   <td height=\"25\" class=\"xl66\" style=\"text-align:center;\">\n    <strong>基本工资</strong>\n   </td>\n   <td class=\"xl66\" style=\"text-align:center;\">\n    <strong>岗位工资</strong>\n   </td>\n   <td class=\"xl66\" style=\"text-align:center;\">\n    <strong>绩效工资</strong>\n   </td>\n   <td class=\"xl66\" style=\"text-align:center;\">\n    <strong>应发小计</strong>\n   </td>\n   <td class=\"xl66\" style=\"text-align:center;\">\n    <strong>养老险</strong>\n   </td>\n   <td class=\"xl66\" style=\"text-align:center;\">\n    <strong>公积金</strong>\n   </td>\n   <td class=\"xl66\" style=\"text-align:center;\">\n    <strong>个税</strong>\n   </td>\n   <td class=\"xl66\" style=\"text-align:center;\">\n    <strong>扣款小计</strong>\n   </td>\n  </tr>\n  <tr>\n   <td height=\"25\" class=\"xl69\" style=\"text-align:center;\">\n    \n   </td>\n   <td class=\"xl69\" style=\"text-align:center;\">\n    \n   </td>\n   <td class=\"xl69\" style=\"text-align:center;\">\n    \n   </td>\n   <td class=\"xl69\" style=\"text-align:center;\">\n    \n   </td>\n   <td class=\"xl69\" style=\"text-align:center;\">\n    \n   </td>\n   <td class=\"xl69\" style=\"text-align:center;\">\n    \n   </td>\n   <td class=\"xl69\" style=\"text-align:center;\">\n    \n   </td>\n   <td class=\"xl69\" style=\"text-align:center;\">\n    \n   </td>\n   <td class=\"xl69\" style=\"text-align:center;\">\n    \n   </td>\n   <td class=\"xl69\" style=\"text-align:center;\">\n    \n   </td>\n   <td class=\"xl68\" style=\"text-align:center;\">\n    \n   </td>\n  </tr>\n </tbody>\n</table>\n<br />"},null,"是"]
[null,null,null,null,null,null,null,null,null,null,null,null,null,"工资单",{"$f":"createhtml(邮件内容HTML模板!$B$1,工资明细表!$B$5:$L$5,工资明细表!B9)","v":"<table border=\"1\" cellpadding=\"0\" cellspacing=\"0\" class=\"\" bordercolor=\"#000000\">\n <tbody>\n  <tr>\n   <td rowspan=\"2\" height=\"50\" class=\"xl66\" width=\"89\" style=\"text-align:center;\">\n    <strong>姓</strong><strong>名</strong>\n   </td>\n   <td rowspan=\"2\" class=\"xl66\" width=\"89\" style=\"text-align:center;\">\n    <strong>月度</strong>\n   </td>\n   <td colspan=\"4\" class=\"xl66\" width=\"336\" style=\"text-align:center;\">\n    <strong>应</strong><span class=\"font7\"><strong>&nbsp;&nbsp;&nbsp; </strong></span><span class=\"font6\"><strong>发</strong></span><span class=\"font7\"><strong>&nbsp;&nbsp;&nbsp; </strong></span><span class=\"font6\"><strong>数</strong></span>\n   </td>\n   <td colspan=\"4\" class=\"xl66\" width=\"307\" style=\"text-align:center;\">\n    <strong>扣</strong><span class=\"font7\"><strong>&nbsp;&nbsp; </strong></span><span class=\"font6\"><strong>除</strong></span><span class=\"font7\"><strong>&nbsp;&nbsp; </strong></span><span class=\"font6\"><strong>数</strong></span>\n   </td>\n   <td rowspan=\"2\" class=\"xl70\" width=\"90\" style=\"text-align:center;\">\n    <strong>实发工资</strong>\n   </td>\n  </tr>\n  <tr>\n   <td height=\"25\" class=\"xl66\" style=\"text-align:center;\">\n    <strong>基本工资</strong>\n   </td>\n   <td class=\"xl66\" style=\"text-align:center;\">\n    <strong>岗位工资</strong>\n   </td>\n   <td class=\"xl66\" style=\"text-align:center;\">\n    <strong>绩效工资</strong>\n   </td>\n   <td class=\"xl66\" style=\"text-align:center;\">\n    <strong>应发小计</strong>\n   </td>\n   <td class=\"xl66\" style=\"text-align:center;\">\n    <strong>养老险</strong>\n   </td>\n   <td class=\"xl66\" style=\"text-align:center;\">\n    <strong>公积金</strong>\n   </td>\n   <td class=\"xl66\" style=\"text-align:center;\">\n    <strong>个税</strong>\n   </td>\n   <td class=\"xl66\" style=\"text-align:center;\">\n    <strong>扣款小计</strong>\n   </td>\n  </tr>\n  <tr>\n   <td height=\"25\" class=\"xl69\" style=\"text-align:center;\">\n    \n   </td>\n   <td class=\"xl69\" style=\"text-align:center;\">\n    \n   </td>\n   <td class=\"xl69\" style=\"text-align:center;\">\n    \n   </td>\n   <td class=\"xl69\" style=\"text-align:center;\">\n    \n   </td>\n   <td class=\"xl69\" style=\"text-align:center;\">\n    \n   </td>\n   <td class=\"xl69\" style=\"text-align:center;\">\n    \n   </td>\n   <td class=\"xl69\" style=\"text-align:center;\">\n    \n   </td>\n   <td class=\"xl69\" style=\"text-align:center;\">\n    \n   </td>\n   <td class=\"xl69\" style=\"text-align:center;\">\n    \n   </td>\n   <td class=\"xl69\" style=\"text-align:center;\">\n    \n   </td>\n   <td class=\"xl68\" style=\"text-align:center;\">\n    \n   </td>\n  </tr>\n </tbody>\n</table>\n<br />"}]
[null,null,null,null,null,null,null,null,null,null,null,null,null,"工资单",{"$f":"createhtml(邮件内容HTML模板!$B$1,工资明细表!$B$5:$L$5,工资明细表!B10)","v":"<table border=\"1\" cellpadding=\"0\" cellspacing=\"0\" class=\"\" bordercolor=\"#000000\">\n <tbody>\n  <tr>\n   <td rowspan=\"2\" height=\"50\" class=\"xl66\" width=\"89\" style=\"text-align:center;\">\n    <strong>姓</strong><strong>名</strong>\n   </td>\n   <td rowspan=\"2\" class=\"xl66\" width=\"89\" style=\"text-align:center;\">\n    <strong>月度</strong>\n   </td>\n   <td colspan=\"4\" class=\"xl66\" width=\"336\" style=\"text-align:center;\">\n    <strong>应</strong><span class=\"font7\"><strong>&nbsp;&nbsp;&nbsp; </strong></span><span class=\"font6\"><strong>发</strong></span><span class=\"font7\"><strong>&nbsp;&nbsp;&nbsp; </strong></span><span class=\"font6\"><strong>数</strong></span>\n   </td>\n   <td colspan=\"4\" class=\"xl66\" width=\"307\" style=\"text-align:center;\">\n    <strong>扣</strong><span class=\"font7\"><strong>&nbsp;&nbsp; </strong></span><span class=\"font6\"><strong>除</strong></span><span class=\"font7\"><strong>&nbsp;&nbsp; </strong></span><span class=\"font6\"><strong>数</strong></span>\n   </td>\n   <td rowspan=\"2\" class=\"xl70\" width=\"90\" style=\"text-align:center;\">\n    <strong>实发工资</strong>\n   </td>\n  </tr>\n  <tr>\n   <td height=\"25\" class=\"xl66\" style=\"text-align:center;\">\n    <strong>基本工资</strong>\n   </td>\n   <td class=\"xl66\" style=\"text-align:center;\">\n    <strong>岗位工资</strong>\n   </td>\n   <td class=\"xl66\" style=\"text-align:center;\">\n    <strong>绩效工资</strong>\n   </td>\n   <td class=\"xl66\" style=\"text-align:center;\">\n    <strong>应发小计</strong>\n   </td>\n   <td class=\"xl66\" style=\"text-align:center;\">\n    <strong>养老险</strong>\n   </td>\n   <td class=\"xl66\" style=\"text-align:center;\">\n    <strong>公积金</strong>\n   </td>\n   <td class=\"xl66\" style=\"text-align:center;\">\n    <strong>个税</strong>\n   </td>\n   <td class=\"xl66\" style=\"text-align:center;\">\n    <strong>扣款小计</strong>\n   </td>\n  </tr>\n  <tr>\n   <td height=\"25\" class=\"xl69\" style=\"text-align:center;\">\n    \n   </td>\n   <td class=\"xl69\" style=\"text-align:center;\">\n    \n   </td>\n   <td class=\"xl69\" style=\"text-align:center;\">\n    \n   </td>\n   <td class=\"xl69\" style=\"text-align:center;\">\n    \n   </td>\n   <td class=\"xl69\" style=\"text-align:center;\">\n    \n   </td>\n   <td class=\"xl69\" style=\"text-align:center;\">\n    \n   </td>\n   <td class=\"xl69\" style=\"text-align:center;\">\n    \n   </td>\n   <td class=\"xl69\" style=\"text-align:center;\">\n    \n   </td>\n   <td class=\"xl69\" style=\"text-align:center;\">\n    \n   </td>\n   <td class=\"xl69\" style=\"text-align:center;\">\n    \n   </td>\n   <td class=\"xl68\" style=\"text-align:center;\">\n    \n   </td>\n  </tr>\n </tbody>\n</table>\n<br />"}]
[null,null,null,null,null,null,null,null,null,null,null,null,null,"工资单",{"$f":"createhtml(邮件内容HTML模板!$B$1,工资明细表!$B$5:$L$5,工资明细表!B11)","v":"<table border=\"1\" cellpadding=\"0\" cellspacing=\"0\" class=\"\" bordercolor=\"#000000\">\n <tbody>\n  <tr>\n   <td rowspan=\"2\" height=\"50\" class=\"xl66\" width=\"89\" style=\"text-align:center;\">\n    <strong>姓</strong><strong>名</strong>\n   </td>\n   <td rowspan=\"2\" class=\"xl66\" width=\"89\" style=\"text-align:center;\">\n    <strong>月度</strong>\n   </td>\n   <td colspan=\"4\" class=\"xl66\" width=\"336\" style=\"text-align:center;\">\n    <strong>应</strong><span class=\"font7\"><strong>&nbsp;&nbsp;&nbsp; </strong></span><span class=\"font6\"><strong>发</strong></span><span class=\"font7\"><strong>&nbsp;&nbsp;&nbsp; </strong></span><span class=\"font6\"><strong>数</strong></span>\n   </td>\n   <td colspan=\"4\" class=\"xl66\" width=\"307\" style=\"text-align:center;\">\n    <strong>扣</strong><span class=\"font7\"><strong>&nbsp;&nbsp; </strong></span><span class=\"font6\"><strong>除</strong></span><span class=\"font7\"><strong>&nbsp;&nbsp; </strong></span><span class=\"font6\"><strong>数</strong></span>\n   </td>\n   <td rowspan=\"2\" class=\"xl70\" width=\"90\" style=\"text-align:center;\">\n    <strong>实发工资</strong>\n   </td>\n  </tr>\n  <tr>\n   <td height=\"25\" class=\"xl66\" style=\"text-align:center;\">\n    <strong>基本工资</strong>\n   </td>\n   <td class=\"xl66\" style=\"text-align:center;\">\n    <strong>岗位工资</strong>\n   </td>\n   <td class=\"xl66\" style=\"text-align:center;\">\n    <strong>绩效工资</strong>\n   </td>\n   <td class=\"xl66\" style=\"text-align:center;\">\n    <strong>应发小计</strong>\n   </td>\n   <td class=\"xl66\" style=\"text-align:center;\">\n    <strong>养老险</strong>\n   </td>\n   <td class=\"xl66\" style=\"text-align:center;\">\n    <strong>公积金</strong>\n   </td>\n   <td class=\"xl66\" style=\"text-align:center;\">\n    <strong>个税</strong>\n   </td>\n   <td class=\"xl66\" style=\"text-align:center;\">\n    <strong>扣款小计</strong>\n   </td>\n  </tr>\n  <tr>\n   <td height=\"25\" class=\"xl69\" style=\"text-align:center;\">\n    \n   </td>\n   <td class=\"xl69\" style=\"text-align:center;\">\n    \n   </td>\n   <td class=\"xl69\" style=\"text-align:center;\">\n    \n   </td>\n   <td class=\"xl69\" style=\"text-align:center;\">\n    \n   </td>\n   <td class=\"xl69\" style=\"text-align:center;\">\n    \n   </td>\n   <td class=\"xl69\" style=\"text-align:center;\">\n    \n   </td>\n   <td class=\"xl69\" style=\"text-align:center;\">\n    \n   </td>\n   <td class=\"xl69\" style=\"text-align:center;\">\n    \n   </td>\n   <td class=\"xl69\" style=\"text-align:center;\">\n    \n   </td>\n   <td class=\"xl69\" style=\"text-align:center;\">\n    \n   </td>\n   <td class=\"xl68\" style=\"text-align:center;\">\n    \n   </td>\n  </tr>\n </tbody>\n</table>\n<br />"}]
[null,null,null,null,null,null,null,null,null,null,null,null,null,"工资单",{"$f":"createhtml(邮件内容HTML模板!$B$1,工资明细表!$B$5:$L$5,工资明细表!B12)","v":"<table border=\"1\" cellpadding=\"0\" cellspacing=\"0\" class=\"\" bordercolor=\"#000000\">\n <tbody>\n  <tr>\n   <td rowspan=\"2\" height=\"50\" class=\"xl66\" width=\"89\" style=\"text-align:center;\">\n    <strong>姓</strong><strong>名</strong>\n   </td>\n   <td rowspan=\"2\" class=\"xl66\" width=\"89\" style=\"text-align:center;\">\n    <strong>月度</strong>\n   </td>\n   <td colspan=\"4\" class=\"xl66\" width=\"336\" style=\"text-align:center;\">\n    <strong>应</strong><span class=\"font7\"><strong>&nbsp;&nbsp;&nbsp; </strong></span><span class=\"font6\"><strong>发</strong></span><span class=\"font7\"><strong>&nbsp;&nbsp;&nbsp; </strong></span><span class=\"font6\"><strong>数</strong></span>\n   </td>\n   <td colspan=\"4\" class=\"xl66\" width=\"307\" style=\"text-align:center;\">\n    <strong>扣</strong><span class=\"font7\"><strong>&nbsp;&nbsp; </strong></span><span class=\"font6\"><strong>除</strong></span><span class=\"font7\"><strong>&nbsp;&nbsp; </strong></span><span class=\"font6\"><strong>数</strong></span>\n   </td>\n   <td rowspan=\"2\" class=\"xl70\" width=\"90\" style=\"text-align:center;\">\n    <strong>实发工资</strong>\n   </td>\n  </tr>\n  <tr>\n   <td height=\"25\" class=\"xl66\" style=\"text-align:center;\">\n    <strong>基本工资</strong>\n   </td>\n   <td class=\"xl66\" style=\"text-align:center;\">\n    <strong>岗位工资</strong>\n   </td>\n   <td class=\"xl66\" style=\"text-align:center;\">\n    <strong>绩效工资</strong>\n   </td>\n   <td class=\"xl66\" style=\"text-align:center;\">\n    <strong>应发小计</strong>\n   </td>\n   <td class=\"xl66\" style=\"text-align:center;\">\n    <strong>养老险</strong>\n   </td>\n   <td class=\"xl66\" style=\"text-align:center;\">\n    <strong>公积金</strong>\n   </td>\n   <td class=\"xl66\" style=\"text-align:center;\">\n    <strong>个税</strong>\n   </td>\n   <td class=\"xl66\" style=\"text-align:center;\">\n    <strong>扣款小计</strong>\n   </td>\n  </tr>\n  <tr>\n   <td height=\"25\" class=\"xl69\" style=\"text-align:center;\">\n    \n   </td>\n   <td class=\"xl69\" style=\"text-align:center;\">\n    \n   </td>\n   <td class=\"xl69\" style=\"text-align:center;\">\n    \n   </td>\n   <td class=\"xl69\" style=\"text-align:center;\">\n    \n   </td>\n   <td class=\"xl69\" style=\"text-align:center;\">\n    \n   </td>\n   <td class=\"xl69\" style=\"text-align:center;\">\n    \n   </td>\n   <td class=\"xl69\" style=\"text-align:center;\">\n    \n   </td>\n   <td class=\"xl69\" style=\"text-align:center;\">\n    \n   </td>\n   <td class=\"xl69\" style=\"text-align:center;\">\n    \n   </td>\n   <td class=\"xl69\" style=\"text-align:center;\">\n    \n   </td>\n   <td class=\"xl68\" style=\"text-align:center;\">\n    \n   </td>\n  </tr>\n </tbody>\n</table>\n<br />"}]
[null,null,null,null,null,null,null,null,null,null,null,null,null,"工资单",{"$f":"createhtml(邮件内容HTML模板!$B$1,工资明细表!$B$5:$L$5,工资明细表!B13)","v":"<table border=\"1\" cellpadding=\"0\" cellspacing=\"0\" class=\"\" bordercolor=\"#000000\">\n <tbody>\n  <tr>\n   <td rowspan=\"2\" height=\"50\" class=\"xl66\" width=\"89\" style=\"text-align:center;\">\n    <strong>姓</strong><strong>名</strong>\n   </td>\n   <td rowspan=\"2\" class=\"xl66\" width=\"89\" style=\"text-align:center;\">\n    <strong>月度</strong>\n   </td>\n   <td colspan=\"4\" class=\"xl66\" width=\"336\" style=\"text-align:center;\">\n    <strong>应</strong><span class=\"font7\"><strong>&nbsp;&nbsp;&nbsp; </strong></span><span class=\"font6\"><strong>发</strong></span><span class=\"font7\"><strong>&nbsp;&nbsp;&nbsp; </strong></span><span class=\"font6\"><strong>数</strong></span>\n   </td>\n   <td colspan=\"4\" class=\"xl66\" width=\"307\" style=\"text-align:center;\">\n    <strong>扣</strong><span class=\"font7\"><strong>&nbsp;&nbsp; </strong></span><span class=\"font6\"><strong>除</strong></span><span class=\"font7\"><strong>&nbsp;&nbsp; </strong></span><span class=\"font6\"><strong>数</strong></span>\n   </td>\n   <td rowspan=\"2\" class=\"xl70\" width=\"90\" style=\"text-align:center;\">\n    <strong>实发工资</strong>\n   </td>\n  </tr>\n  <tr>\n   <td height=\"25\" class=\"xl66\" style=\"text-align:center;\">\n    <strong>基本工资</strong>\n   </td>\n   <td class=\"xl66\" style=\"text-align:center;\">\n    <strong>岗位工资</strong>\n   </td>\n   <td class=\"xl66\" style=\"text-align:center;\">\n    <strong>绩效工资</strong>\n   </td>\n   <td class=\"xl66\" style=\"text-align:center;\">\n    <strong>应发小计</strong>\n   </td>\n   <td class=\"xl66\" style=\"text-align:center;\">\n    <strong>养老险</strong>\n   </td>\n   <td class=\"xl66\" style=\"text-align:center;\">\n    <strong>公积金</strong>\n   </td>\n   <td class=\"xl66\" style=\"text-align:center;\">\n    <strong>个税</strong>\n   </td>\n   <td class=\"xl66\" style=\"text-align:center;\">\n    <strong>扣款小计</strong>\n   </td>\n  </tr>\n  <tr>\n   <td height=\"25\" class=\"xl69\" style=\"text-align:center;\">\n    \n   </td>\n   <td class=\"xl69\" style=\"text-align:center;\">\n    \n   </td>\n   <td class=\"xl69\" style=\"text-align:center;\">\n    \n   </td>\n   <td class=\"xl69\" style=\"text-align:center;\">\n    \n   </td>\n   <td class=\"xl69\" style=\"text-align:center;\">\n    \n   </td>\n   <td class=\"xl69\" style=\"text-align:center;\">\n    \n   </td>\n   <td class=\"xl69\" style=\"text-align:center;\">\n    \n   </td>\n   <td class=\"xl69\" style=\"text-align:center;\">\n    \n   </td>\n   <td class=\"xl69\" style=\"text-align:center;\">\n    \n   </td>\n   <td class=\"xl69\" style=\"text-align:center;\">\n    \n   </td>\n   <td class=\"xl68\" style=\"text-align:center;\">\n    \n   </td>\n  </tr>\n </tbody>\n</table>\n<br />"}]
[null,null,null,null,null,null,null,null,null,null,null,null,null,"工资单",{"$f":"createhtml(邮件内容HTML模板!$B$1,工资明细表!$B$5:$L$5,工资明细表!B14)","v":"<table border=\"1\" cellpadding=\"0\" cellspacing=\"0\" class=\"\" bordercolor=\"#000000\">\n <tbody>\n  <tr>\n   <td rowspan=\"2\" height=\"50\" class=\"xl66\" width=\"89\" style=\"text-align:center;\">\n    <strong>姓</strong><strong>名</strong>\n   </td>\n   <td rowspan=\"2\" class=\"xl66\" width=\"89\" style=\"text-align:center;\">\n    <strong>月度</strong>\n   </td>\n   <td colspan=\"4\" class=\"xl66\" width=\"336\" style=\"text-align:center;\">\n    <strong>应</strong><span class=\"font7\"><strong>&nbsp;&nbsp;&nbsp; </strong></span><span class=\"font6\"><strong>发</strong></span><span class=\"font7\"><strong>&nbsp;&nbsp;&nbsp; </strong></span><span class=\"font6\"><strong>数</strong></span>\n   </td>\n   <td colspan=\"4\" class=\"xl66\" width=\"307\" style=\"text-align:center;\">\n    <strong>扣</strong><span class=\"font7\"><strong>&nbsp;&nbsp; </strong></span><span class=\"font6\"><strong>除</strong></span><span class=\"font7\"><strong>&nbsp;&nbsp; </strong></span><span class=\"font6\"><strong>数</strong></span>\n   </td>\n   <td rowspan=\"2\" class=\"xl70\" width=\"90\" style=\"text-align:center;\">\n    <strong>实发工资</strong>\n   </td>\n  </tr>\n  <tr>\n   <td height=\"25\" class=\"xl66\" style=\"text-align:center;\">\n    <strong>基本工资</strong>\n   </td>\n   <td class=\"xl66\" style=\"text-align:center;\">\n    <strong>岗位工资</strong>\n   </td>\n   <td class=\"xl66\" style=\"text-align:center;\">\n    <strong>绩效工资</strong>\n   </td>\n   <td class=\"xl66\" style=\"text-align:center;\">\n    <strong>应发小计</strong>\n   </td>\n   <td class=\"xl66\" style=\"text-align:center;\">\n    <strong>养老险</strong>\n   </td>\n   <td class=\"xl66\" style=\"text-align:center;\">\n    <strong>公积金</strong>\n   </td>\n   <td class=\"xl66\" style=\"text-align:center;\">\n    <strong>个税</strong>\n   </td>\n   <td class=\"xl66\" style=\"text-align:center;\">\n    <strong>扣款小计</strong>\n   </td>\n  </tr>\n  <tr>\n   <td height=\"25\" class=\"xl69\" style=\"text-align:center;\">\n    \n   </td>\n   <td class=\"xl69\" style=\"text-align:center;\">\n    \n   </td>\n   <td class=\"xl69\" style=\"text-align:center;\">\n    \n   </td>\n   <td class=\"xl69\" style=\"text-align:center;\">\n    \n   </td>\n   <td class=\"xl69\" style=\"text-align:center;\">\n    \n   </td>\n   <td class=\"xl69\" style=\"text-align:center;\">\n    \n   </td>\n   <td class=\"xl69\" style=\"text-align:center;\">\n    \n   </td>\n   <td class=\"xl69\" style=\"text-align:center;\">\n    \n   </td>\n   <td class=\"xl69\" style=\"text-align:center;\">\n    \n   </td>\n   <td class=\"xl69\" style=\"text-align:center;\">\n    \n   </td>\n   <td class=\"xl68\" style=\"text-align:center;\">\n    \n   </td>\n  </tr>\n </tbody>\n</table>\n<br />"}]

{"sheet":"示例文件","index":1,"n_rows":14,"n_cols":18,"rows_kept":14,"cut":false,"hidden":false,"merged":[[2,17,3,17],[0,0,0,11],[2,1,3,1],[2,2,3,2],[2,3,2,6],[2,7,2,10],[2,11,3,11],[2,12,3,12],[2,13,3,13],[2,14,3,14],[2,15,3,15],[2,16,3,16]]}
["深圳市XXX公司工资发放表"]
[]
["序","姓名","月度","应    发    数",null,null,null,"扣   除   数",null,null,null,"实发工资","收件人邮箱","邮件标题","邮件内容","附件","是否发邮件","成功标志"]
["号",null,null,"基本工资","岗位工资","绩效工资","应发小计","养老险","公积金","个税","扣款小计"]
[null,"【姓名】","【月度】","【基本工资】","【岗位工资】","【绩效工资】","【应发小计】","【养老险】","【公积金】","【个税】","【扣款小计】","【实发工资】"]
[1,"蓝增",202103,5000,3970,1120,10090,807.2,50.45,698.24,1555.89,8534.11,"123l@163.com",{"$f":"B6&C6&\"工资单\"","v":"蓝增202103工资单"},{"$f":"createhtml(邮件内容HTML模板!$B$1,示例文件!$B$5:$L$5,示例文件!B6)","v":"<table border=\"1\" cellpadding=\"0\" cellspacing=\"0\" class=\"\" bordercolor=\"#000000\">\n <tbody>\n  <tr>\n   <td rowspan=\"2\" height=\"50\" class=\"xl66\" width=\"89\" style=\"text-align:center;\">\n    <strong>姓</strong><strong>名</strong>\n   </td>\n   <td rowspan=\"2\" class=\"xl66\" width=\"89\" style=\"text-align:center;\">\n    <strong>月度</strong>\n   </td>\n   <td colspan=\"4\" class=\"xl66\" width=\"336\" style=\"text-align:center;\">\n    <strong>应</strong><span class=\"font7\"><strong>&nbsp;&nbsp;&nbsp; </strong></span><span class=\"font6\"><strong>发</strong></span><span class=\"font7\"><strong>&nbsp;&nbsp;&nbsp; </strong></span><span class=\"font6\"><strong>数</strong></span>\n   </td>\n   <td colspan=\"4\" class=\"xl66\" width=\"307\" style=\"text-align:center;\">\n    <strong>扣</strong><span class=\"font7\"><strong>&nbsp;&nbsp; </strong></span><span class=\"font6\"><strong>除</strong></span><span class=\"font7\"><strong>&nbsp;&nbsp; </strong></span><span class=\"font6\"><strong>数</strong></span>\n   </td>\n   <td rowspan=\"2\" class=\"xl70\" width=\"90\" style=\"text-align:center;\">\n    <strong>实发工资</strong>\n   </td>\n  </tr>\n  <tr>\n   <td height=\"25\" class=\"xl66\" style=\"text-align:center;\">\n    <strong>基本工资</strong>\n   </td>\n   <td class=\"xl66\" style=\"text-align:center;\">\n    <strong>岗位工资</strong>\n   </td>\n   <td class=\"xl66\" style=\"text-align:center;\">\n    <strong>绩效工资</strong>\n   </td>\n   <td class=\"xl66\" style=\"text-align:center;\">\n    <strong>应发小计</strong>\n   </td>\n   <td class=\"xl66\" style=\"text-align:center;\">\n    <strong>养老险</strong>\n   </td>\n   <td class=\"xl66\" style=\"text-align:center;\">\n    <strong>公积金</strong>\n   </td>\n   <td class=\"xl66\" style=\"text-align:center;\">\n    <strong>个税</strong>\n   </td>\n   <td class=\"xl66\" style=\"text-align:center;\">\n    <strong>扣款小计</strong>\n   </td>\n  </tr>\n  <tr>\n   <td height=\"25\" class=\"xl69\" style=\"text-align:center;\">\n    蓝增\n   </td>\n   <td class=\"xl69\" style=\"text-align:center;\">\n    202103\n   </td>\n   <td class=\"xl69\" style=\"text-align:center;\">\n    5000\n   </td>\n   <td class=\"xl69\" style=\"text-align:center;\">\n    3970\n   </td>\n   <td class=\"xl69\" style=\"text-align:center;\">\n    1120\n   </td>\n   <td class=\"xl69\" style=\"text-align:center;\">\n    10090\n   </td>\n   <td class=\"xl69\" style=\"text-align:center;\">\n    807.2\n   </td>\n   <td class=\"xl69\" style=\"text-align:center;\">\n    50.45\n   </td>\n   <td class=\"xl69\" style=\"text-align:center;\">\n    698.24\n   </td>\n   <td class=\"xl69\" style=\"text-align:center;\">\n    1555.89\n   </td>\n   <td class=\"xl68\" style=\"text-align:center;\">\n    8534.11\n   </td>\n  </tr>\n </tbody>\n</table>\n<br />"},null,"是","成功！"]
[2,"郑危甄",202103,5000,1818,1110,7928,634.24,39.64,262.70999999999998,936.58999999999992,6991.41,"123l@163.com",{"$f":"B7&C7&\"工资单\"","v":"郑危甄202103工资单"},{"$f":"createhtml(邮件内容HTML模板!$B$1,示例文件!$B$5:$L$5,示例文件!B7)","v":"<table border=\"1\" cellpadding=\"0\" cellspacing=\"0\" class=\"\" bordercolor=\"#000000\">\n <tbody>\n  <tr>\n   <td rowspan=\"2\" height=\"50\" class=\"xl66\" width=\"89\" style=\"text-align:center;\">\n    <strong>姓</strong><strong>名</strong>\n   </td>\n   <td rowspan=\"2\" class=\"xl66\" width=\"89\" style=\"text-align:center;\">\n    <strong>月度</strong>\n   </td>\n   <td colspan=\"4\" class=\"xl66\" width=\"336\" style=\"text-align:center;\">\n    <strong>应</strong><span class=\"font7\"><strong>&nbsp;&nbsp;&nbsp; </strong></span><span class=\"font6\"><strong>发</strong></span><span class=\"font7\"><strong>&nbsp;&nbsp;&nbsp; </strong></span><span class=\"font6\"><strong>数</strong></span>\n   </td>\n   <td colspan=\"4\" class=\"xl66\" width=\"307\" style=\"text-align:center;\">\n    <strong>扣</strong><span class=\"font7\"><strong>&nbsp;&nbsp; </strong></span><span class=\"font6\"><strong>除</strong></span><span class=\"font7\"><strong>&nbsp;&nbsp; </strong></span><span class=\"font6\"><strong>数</strong></span>\n   </td>\n   <td rowspan=\"2\" class=\"xl70\" width=\"90\" style=\"text-align:center;\">\n    <strong>实发工资</strong>\n   </td>\n  </tr>\n  <tr>\n   <td height=\"25\" class=\"xl66\" style=\"text-align:center;\">\n    <strong>基本工资</strong>\n   </td>\n   <td class=\"xl66\" style=\"text-align:center;\">\n    <strong>岗位工资</strong>\n   </td>\n   <td class=\"xl66\" style=\"text-align:center;\">\n    <strong>绩效工资</strong>\n   </td>\n   <td class=\"xl66\" style=\"text-align:center;\">\n    <strong>应发小计</strong>\n   </td>\n   <td class=\"xl66\" style=\"text-align:center;\">\n    <strong>养老险</strong>\n   </td>\n   <td class=\"xl66\" style=\"text-align:center;\">\n    <strong>公积金</strong>\n   </td>\n   <td class=\"xl66\" style=\"text-align:center;\">\n    <strong>个税</strong>\n   </td>\n   <td class=\"xl66\" style=\"text-align:center;\">\n    <strong>扣款小计</strong>\n   </td>\n  </tr>\n  <tr>\n   <td height=\"25\" class=\"xl69\" style=\"text-align:center;\">\n    郑危甄\n   </td>\n   <td class=\"xl69\" style=\"text-align:center;\">\n    202103\n   </td>\n   <td class=\"xl69\" style=\"text-align:center;\">\n    5000\n   </td>\n   <td class=\"xl69\" style=\"text-align:center;\">\n    1818\n   </td>\n   <td class=\"xl69\" style=\"text-align:center;\">\n    1110\n   </td>\n   <td class=\"xl69\" style=\"text-align:center;\">\n    7928\n   </td>\n   <td class=\"xl69\" style=\"text-align:center;\">\n    634.24\n   </td>\n   <td class=\"xl69\" style=\"text-align:center;\">\n    39.64\n   </td>\n   <td class=\"xl69\" style=\"text-align:center;\">\n    262.71\n   </td>\n   <td class=\"xl69\" style=\"text-align:center;\">\n    936.59\n   </td>\n   <td class=\"xl68\" style=\"text-align:center;\">\n    6991.41\n   </td>\n  </tr>\n </tbody>\n</table>\n<br />"},null,"是","成功！"]
[3,"娄家角",202103,5000,2197,1013,8210,656.8,41.05,275.61,973.45999999999992,7236.54,"123l@163.com","娄家角202103工资单",{"$f":"createhtml(邮件内容HTML模板!$B$1,示例文件!$B$5:$L$5,示例文件!B8)","v":"<table border=\"1\" cellpadding=\"0\" cellspacing=\"0\" class=\"\" bordercolor=\"#000000\">\n <tbody>\n  <tr>\n   <td rowspan=\"2\" height=\"50\" class=\"xl66\" width=\"89\" style=\"text-align:center;\">\n    <strong>姓</strong><strong>名</strong>\n   </td>\n   <td rowspan=\"2\" class=\"xl66\" width=\"89\" style=\"text-align:center;\">\n    <strong>月度</strong>\n   </td>\n   <td colspan=\"4\" class=\"xl66\" width=\"336\" style=\"text-align:center;\">\n    <strong>应</strong><span class=\"font7\"><strong>&nbsp;&nbsp;&nbsp; </strong></span><span class=\"font6\"><strong>发</strong></span><span class=\"font7\"><strong>&nbsp;&nbsp;&nbsp; </strong></span><span class=\"font6\"><strong>数</strong></span>\n   </td>\n   <td colspan=\"4\" class=\"xl66\" width=\"307\" style=\"text-align:center;\">\n    <strong>扣</strong><span class=\"font7\"><strong>&nbsp;&nbsp; </strong></span><span class=\"font6\"><strong>除</strong></span><span class=\"font7\"><strong>&nbsp;&nbsp; </strong></span><span class=\"font6\"><strong>数</strong></span>\n   </td>\n   <td rowspan=\"2\" class=\"xl70\" width=\"90\" style=\"text-align:center;\">\n    <strong>实发工资</strong>\n   </td>\n  </tr>\n  <tr>\n   <td height=\"25\" class=\"xl66\" style=\"text-align:center;\">\n    <strong>基本工资</strong>\n   </td>\n   <td class=\"xl66\" style=\"text-align:center;\">\n    <strong>岗位工资</strong>\n   </td>\n   <td class=\"xl66\" style=\"text-align:center;\">\n    <strong>绩效工资</strong>\n   </td>\n   <td class=\"xl66\" style=\"text-align:center;\">\n    <strong>应发小计</strong>\n   </td>\n   <td class=\"xl66\" style=\"text-align:center;\">\n    <strong>养老险</strong>\n   </td>\n   <td class=\"xl66\" style=\"text-align:center;\">\n    <strong>公积金</strong>\n   </td>\n   <td class=\"xl66\" style=\"text-align:center;\">\n    <strong>个税</strong>\n   </td>\n   <td class=\"xl66\" style=\"text-align:center;\">\n    <strong>扣款小计</strong>\n   </td>\n  </tr>\n  <tr>\n   <td height=\"25\" class=\"xl69\" style=\"text-align:center;\">\n    娄家角\n   </td>\n   <td class=\"xl69\" style=\"text-align:center;\">\n    202103\n   </td>\n   <td class=\"xl69\" style=\"text-align:center;\">\n    5000\n   </td>\n   <td class=\"xl69\" style=\"text-align:center;\">\n    2197\n   </td>\n   <td class=\"xl69\" style=\"text-align:center;\">\n    1013\n   </td>\n   <td class=\"xl69\" style=\"text-align:center;\">\n    8210\n   </td>\n   <td class=\"xl69\" style=\"text-align:center;\">\n    656.8\n   </td>\n   <td class=\"xl69\" style=\"text-align:center;\">\n    41.05\n   </td>\n   <td class=\"xl69\" style=\"text-align:center;\">\n    275.61\n   </td>\n   <td class=\"xl69\" style=\"text-align:center;\">\n    973.46\n   </td>\n   <td class=\"xl68\" style=\"text-align:center;\">\n    7236.54\n   </td>\n  </tr>\n </tbody>\n</table>\n<br />"},null,"是","成功！"]
[4,"邴明",202103,5000,2427,2559,9986,798.88,49.93,688.72,1537.53,8448.4699999999993,"123l@163.com","邴明202103工资单",{"$f":"createhtml(邮件内容HTML模板!$B$1,示例文件!$B$5:$L$5,示例文件!B9)","v":"<table border=\"1\" cellpadding=\"0\" cellspacing=\"0\" class=\"\" bordercolor=\"#000000\">\n <tbody>\n  <tr>\n   <td rowspan=\"2\" height=\"50\" class=\"xl66\" width=\"89\" style=\"text-align:center;\">\n    <strong>姓</strong><strong>名</strong>\n   </td>\n   <td rowspan=\"2\" class=\"xl66\" width=\"89\" style=\"text-align:center;\">\n    <strong>月度</strong>\n   </td>\n   <td colspan=\"4\" class=\"xl66\" width=\"336\" style=\"text-align:center;\">\n    <strong>应</strong><span class=\"font7\"><strong>&nbsp;&nbsp;&nbsp; </strong></span><span class=\"font6\"><strong>发</strong></span><span class=\"font7\"><strong>&nbsp;&nbsp;&nbsp; </strong></span><span class=\"font6\"><strong>数</strong></span>\n   </td>\n   <td colspan=\"4\" class=\"xl66\" width=\"307\" style=\"text-align:center;\">\n    <strong>扣</strong><span class=\"font7\"><strong>&nbsp;&nbsp; </strong></span><span class=\"font6\"><strong>除</strong></span><span class=\"font7\"><strong>&nbsp;&nbsp; </strong></span><span class=\"font6\"><strong>数</strong></span>\n   </td>\n   <td rowspan=\"2\" class=\"xl70\" width=\"90\" style=\"text-align:center;\">\n    <strong>实发工资</strong>\n   </td>\n  </tr>\n  <tr>\n   <td height=\"25\" class=\"xl66\" style=\"text-align:center;\">\n    <strong>基本工资</strong>\n   </td>\n   <td class=\"xl66\" style=\"text-align:center;\">\n    <strong>岗位工资</strong>\n   </td>\n   <td class=\"xl66\" style=\"text-align:center;\">\n    <strong>绩效工资</strong>\n   </td>\n   <td class=\"xl66\" style=\"text-align:center;\">\n    <strong>应发小计</strong>\n   </td>\n   <td class=\"xl66\" style=\"text-align:center;\">\n    <strong>养老险</strong>\n   </td>\n   <td class=\"xl66\" style=\"text-align:center;\">\n    <strong>公积金</strong>\n   </td>\n   <td class=\"xl66\" style=\"text-align:center;\">\n    <strong>个税</strong>\n   </td>\n   <td class=\"xl66\" style=\"text-align:center;\">\n    <strong>扣款小计</strong>\n   </td>\n  </tr>\n  <tr>\n   <td height=\"25\" class=\"xl69\" style=\"text-align:center;\">\n    邴明\n   </td>\n   <td class=\"xl69\" style=\"text-align:center;\">\n    202103\n   </td>\n   <td class=\"xl69\" style=\"text-align:center;\">\n    5000\n   </td>\n   <td class=\"xl69\" style=\"text-align:center;\">\n    2427\n   </td>\n   <td class=\"xl69\" style=\"text-align:center;\">\n    2559\n   </td>\n   <td class=\"xl69\" style=\"text-align:center;\">\n    9986\n   </td>\n   <td class=\"xl69\" style=\"text-align:center;\">\n    798.88\n   </td>\n   <td class=\"xl69\" style=\"text-align:center;\">\n    49.93\n   </td>\n   <td class=\"xl69\" style=\"text-align:center;\">\n    688.72\n   </td>\n   <td class=\"xl69\" style=\"text-align:center;\">\n    1537.53\n   </td>\n   <td class=\"xl68\" style=\"text-align:center;\">\n    8448.47\n   </td>\n  </tr>\n </tbody>\n</table>\n<br />"}]
[5,"宗办",202103,5000,1593,1538,8131,650.48,40.659999999999997,271.99,963.13,7167.87,"123l@163.com","宗办202103工资单",{"$f":"createhtml(邮件内容HTML模板!$B$1,示例文件!$B$5:$L$5,示例文件!B10)","v":"<table border=\"1\" cellpadding=\"0\" cellspacing=\"0\" class=\"\" bordercolor=\"#000000\">\n <tbody>\n  <tr>\n   <td rowspan=\"2\" height=\"50\" class=\"xl66\" width=\"89\" style=\"text-align:center;\">\n    <strong>姓</strong><strong>名</strong>\n   </td>\n   <td rowspan=\"2\" class=\"xl66\" width=\"89\" style=\"text-align:center;\">\n    <strong>月度</strong>\n   </td>\n   <td colspan=\"4\" class=\"xl66\" width=\"336\" style=\"text-align:center;\">\n    <strong>应</strong><span class=\"font7\"><strong>&nbsp;&nbsp;&nbsp; </strong></span><span class=\"font6\"><strong>发</strong></span><span class=\"font7\"><strong>&nbsp;&nbsp;&nbsp; </strong></span><span class=\"font6\"><strong>数</strong></span>\n   </td>\n   <td colspan=\"4\" class=\"xl66\" width=\"307\" style=\"text-align:center;\">\n    <strong>扣</strong><span class=\"font7\"><strong>&nbsp;&nbsp; </strong></span><span class=\"font6\"><strong>除</strong></span><span class=\"font7\"><strong>&nbsp;&nbsp; </strong></span><span class=\"font6\"><strong>数</strong></span>\n   </td>\n   <td rowspan=\"2\" class=\"xl70\" width=\"90\" style=\"text-align:center;\">\n    <strong>实发工资</strong>\n   </td>\n  </tr>\n  <tr>\n   <td height=\"25\" class=\"xl66\" style=\"text-align:center;\">\n    <strong>基本工资</strong>\n   </td>\n   <td class=\"xl66\" style=\"text-align:center;\">\n    <strong>岗位工资</strong>\n   </td>\n   <td class=\"xl66\" style=\"text-align:center;\">\n    <strong>绩效工资</strong>\n   </td>\n   <td class=\"xl66\" style=\"text-align:center;\">\n    <strong>应发小计</strong>\n   </td>\n   <td class=\"xl66\" style=\"text-align:center;\">\n    <strong>养老险</strong>\n   </td>\n   <td class=\"xl66\" style=\"text-align:center;\">\n    <strong>公积金</strong>\n   </td>\n   <td class=\"xl66\" style=\"text-align:center;\">\n    <strong>个税</strong>\n   </td>\n   <td class=\"xl66\" style=\"text-align:center;\">\n    <strong>扣款小计</strong>\n   </td>\n  </tr>\n  <tr>\n   <td height=\"25\" class=\"xl69\" style=\"text-align:center;\">\n    宗办\n   </td>\n   <td class=\"xl69\" style=\"text-align:center;\">\n    202103\n   </td>\n   <td class=\"xl69\" style=\"text-align:center;\">\n    5000\n   </td>\n   <td class=\"xl69\" style=\"text-align:center;\">\n    1593\n   </td>\n   <td class=\"xl69\" style=\"text-align:center;\">\n    1538\n   </td>\n   <td class=\"xl69\" style=\"text-align:center;\">\n    8131\n   </td>\n   <td class=\"xl69\" style=\"text-align:center;\">\n    650.48\n   </td>\n   <td class=\"xl69\" style=\"text-align:center;\">\n    40.66\n   </td>\n   <td class=\"xl69\" style=\"text-align:center;\">\n    271.99\n   </td>\n   <td class=\"xl69\" style=\"text-align:center;\">\n    963.13\n   </td>\n   <td class=\"xl68\" style=\"text-align:center;\">\n    7167.87\n   </td>\n  </tr>\n </tbody>\n</table>\n<br />"}]
[6,"邬贲",202103,5000,2654,1628,9282,742.56,46.41,624.29999999999995,1413.27,7868.73,"123l@163.com","邬贲202103工资单",{"$f":"createhtml(邮件内容HTML模板!$B$1,示例文件!$B$5:$L$5,示例文件!B11)","v":"<table border=\"1\" cellpadding=\"0\" cellspacing=\"0\" class=\"\" bordercolor=\"#000000\">\n <tbody>\n  <tr>\n   <td rowspan=\"2\" height=\"50\" class=\"xl66\" width=\"89\" style=\"text-align:center;\">\n    <strong>姓</strong><strong>名</strong>\n   </td>\n   <td rowspan=\"2\" class=\"xl66\" width=\"89\" style=\"text-align:center;\">\n    <strong>月度</strong>\n   </td>\n   <td colspan=\"4\" class=\"xl66\" width=\"336\" style=\"text-align:center;\">\n    <strong>应</strong><span class=\"font7\"><strong>&nbsp;&nbsp;&nbsp; </strong></span><span class=\"font6\"><strong>发</strong></span><span class=\"font7\"><strong>&nbsp;&nbsp;&nbsp; </strong></span><span class=\"font6\"><strong>数</strong></span>\n   </td>\n   <td colspan=\"4\" class=\"xl66\" width=\"307\" style=\"text-align:center;\">\n    <strong>扣</strong><span class=\"font7\"><strong>&nbsp;&nbsp; </strong></span><span class=\"font6\"><strong>除</strong></span><span class=\"font7\"><strong>&nbsp;&nbsp; </strong></span><span class=\"font6\"><strong>数</strong></span>\n   </td>\n   <td rowspan=\"2\" class=\"xl70\" width=\"90\" style=\"text-align:center;\">\n    <strong>实发工资</strong>\n   </td>\n  </tr>\n  <tr>\n   <td height=\"25\" class=\"xl66\" style=\"text-align:center;\">\n    <strong>基本工资</strong>\n   </td>\n   <td class=\"xl66\" style=\"text-align:center;\">\n    <strong>岗位工资</strong>\n   </td>\n   <td class=\"xl66\" style=\"text-align:center;\">\n    <strong>绩效工资</strong>\n   </td>\n   <td class=\"xl66\" style=\"text-align:center;\">\n    <strong>应发小计</strong>\n   </td>\n   <td class=\"xl66\" style=\"text-align:center;\">\n    <strong>养老险</strong>\n   </td>\n   <td class=\"xl66\" style=\"text-align:center;\">\n    <strong>公积金</strong>\n   </td>\n   <td class=\"xl66\" style=\"text-align:center;\">\n    <strong>个税</strong>\n   </td>\n   <td class=\"xl66\" style=\"text-align:center;\">\n    <strong>扣款小计</strong>\n   </td>\n  </tr>\n  <tr>\n   <td height=\"25\" class=\"xl69\" style=\"text-align:center;\">\n    邬贲\n   </td>\n   <td class=\"xl69\" style=\"text-align:center;\">\n    202103\n   </td>\n   <td class=\"xl69\" style=\"text-align:center;\">\n    5000\n   </td>\n   <td class=\"xl69\" style=\"text-align:center;\">\n    2654\n   </td>\n   <td class=\"xl69\" style=\"text-align:center;\">\n    1628\n   </td>\n   <td class=\"xl69\" style=\"text-align:center;\">\n    9282\n   </td>\n   <td class=\"xl69\" style=\"text-align:center;\">\n    742.56\n   </td>\n   <td class=\"xl69\" style=\"text-align:center;\">\n    46.41\n   </td>\n   <td class=\"xl69\" style=\"text-align:center;\">\n    624.3\n   </td>\n   <td class=\"xl69\" style=\"text-align:center;\">\n    1413.27\n   </td>\n   <td class=\"xl68\" style=\"text-align:center;\">\n    7868.73\n   </td>\n  </tr>\n </tbody>\n</table>\n<br />"}]
[7,"狄裴青",202103,5000,2747,2646,10393,831.44,51.97,725.96,1609.3700000000001,8783.6299999999992,"123l@163.com","狄裴青202103工资单",{"$f":"createhtml(邮件内容HTML模板!$B$1,示例文件!$B$5:$L$5,示例文件!B12)","v":"<table border=\"1\" cellpadding=\"0\" cellspacing=\"0\" class=\"\" bordercolor=\"#000000\">\n <tbody>\n  <tr>\n   <td rowspan=\"2\" height=\"50\" class=\"xl66\" width=\"89\" style=\"text-align:center;\">\n    <strong>姓</strong><strong>名</strong>\n   </td>\n   <td rowspan=\"2\" class=\"xl66\" width=\"89\" style=\"text-align:center;\">\n    <strong>月度</strong>\n   </td>\n   <td colspan=\"4\" class=\"xl66\" width=\"336\" style=\"text-align:center;\">\n    <strong>应</strong><span class=\"font7\"><strong>&nbsp;&nbsp;&nbsp; </strong></span><span class=\"font6\"><strong>发</strong></span><span class=\"font7\"><strong>&nbsp;&nbsp;&nbsp; </strong></span><span class=\"font6\"><strong>数</strong></span>\n   </td>\n   <td colspan=\"4\" class=\"xl66\" width=\"307\" style=\"text-align:center;\">\n    <strong>扣</strong><span class=\"font7\"><strong>&nbsp;&nbsp; </strong></span><span class=\"font6\"><strong>除</strong></span><span class=\"font7\"><strong>&nbsp;&nbsp; </strong></span><span class=\"font6\"><strong>数</strong></span>\n   </td>\n   <td rowspan=\"2\" class=\"xl70\" width=\"90\" style=\"text-align:center;\">\n    <strong>实发工资</strong>\n   </td>\n  </tr>\n  <tr>\n   <td height=\"25\" class=\"xl66\" style=\"text-align:center;\">\n    <strong>基本工资</strong>\n   </td>\n   <td class=\"xl66\" style=\"text-align:center;\">\n    <strong>岗位工资</strong>\n   </td>\n   <td class=\"xl66\" style=\"text-align:center;\">\n    <strong>绩效工资</strong>\n   </td>\n   <td class=\"xl66\" style=\"text-align:center;\">\n    <strong>应发小计</strong>\n   </td>\n   <td class=\"xl66\" style=\"text-align:center;\">\n    <strong>养老险</strong>\n   </td>\n   <td class=\"xl66\" style=\"text-align:center;\">\n    <strong>公积金</strong>\n   </td>\n   <td class=\"xl66\" style=\"text-align:center;\">\n    <strong>个税</strong>\n   </td>\n   <td class=\"xl66\" style=\"text-align:center;\">\n    <strong>扣款小计</strong>\n   </td>\n  </tr>\n  <tr>\n   <td height=\"25\" class=\"xl69\" style=\"text-align:center;\">\n    狄裴青\n   </td>\n   <td class=\"xl69\" style=\"text-align:center;\">\n    202103\n   </td>\n   <td class=\"xl69\" style=\"text-align:center;\">\n    5000\n   </td>\n   <td class=\"xl69\" style=\"text-align:center;\">\n    2747\n   </td>\n   <td class=\"xl69\" style=\"text-align:center;\">\n    2646\n   </td>\n   <td class=\"xl69\" style=\"text-align:center;\">\n    10393\n   </td>\n   <td class=\"xl69\" style=\"text-align:center;\">\n    831.44\n   </td>\n   <td class=\"xl69\" style=\"text-align:center;\">\n    51.97\n   </td>\n   <td class=\"xl69\" style=\"text-align:center;\">\n    725.96\n   </td>\n   <td class=\"xl69\" style=\"text-align:center;\">\n    1609.37\n   </td>\n   <td class=\"xl68\" style=\"text-align:center;\">\n    8783.63\n   </td>\n  </tr>\n </tbody>\n</table>\n<br />"}]
[8,"祁常",202103,5000,2427,2610,10037,802.96,50.19,693.39,1546.54,8490.4599999999991,"123l@163.com","祁常202103工资单",{"$f":"createhtml(邮件内容HTML模板!$B$1,示例文件!$B$5:$L$5,示例文件!B13)","v":"<table border=\"1\" cellpadding=\"0\" cellspacing=\"0\" class=\"\" bordercolor=\"#000000\">\n <tbody>\n  <tr>\n   <td rowspan=\"2\" height=\"50\" class=\"xl66\" width=\"89\" style=\"text-align:center;\">\n    <strong>姓</strong><strong>名</strong>\n   </td>\n   <td rowspan=\"2\" class=\"xl66\" width=\"89\" style=\"text-align:center;\">\n    <strong>月度</strong>\n   </td>\n   <td colspan=\"4\" class=\"xl66\" width=\"336\" style=\"text-align:center;\">\n    <strong>应</strong><span class=\"font7\"><strong>&nbsp;&nbsp;&nbsp; </strong></span><span class=\"font6\"><strong>发</strong></span><span class=\"font7\"><strong>&nbsp;&nbsp;&nbsp; </strong></span><span class=\"font6\"><strong>数</strong></span>\n   </td>\n   <td colspan=\"4\" class=\"xl66\" width=\"307\" style=\"text-align:center;\">\n    <strong>扣</strong><span class=\"font7\"><strong>&nbsp;&nbsp; </strong></span><span class=\"font6\"><strong>除</strong></span><span class=\"font7\"><strong>&nbsp;&nbsp; </strong></span><span class=\"font6\"><strong>数</strong></span>\n   </td>\n   <td rowspan=\"2\" class=\"xl70\" width=\"90\" style=\"text-align:center;\">\n    <strong>实发工资</strong>\n   </td>\n  </tr>\n  <tr>\n   <td height=\"25\" class=\"xl66\" style=\"text-align:center;\">\n    <strong>基本工资</strong>\n   </td>\n   <td class=\"xl66\" style=\"text-align:center;\">\n    <strong>岗位工资</strong>\n   </td>\n   <td class=\"xl66\" style=\"text-align:center;\">\n    <strong>绩效工资</strong>\n   </td>\n   <td class=\"xl66\" style=\"text-align:center;\">\n    <strong>应发小计</strong>\n   </td>\n   <td class=\"xl66\" style=\"text-align:center;\">\n    <strong>养老险</strong>\n   </td>\n   <td class=\"xl66\" style=\"text-align:center;\">\n    <strong>公积金</strong>\n   </td>\n   <td class=\"xl66\" style=\"text-align:center;\">\n    <strong>个税</strong>\n   </td>\n   <td class=\"xl66\" style=\"text-align:center;\">\n    <strong>扣款小计</strong>\n   </td>\n  </tr>\n  <tr>\n   <td height=\"25\" class=\"xl69\" style=\"text-align:center;\">\n    祁常\n   </td>\n   <td class=\"xl69\" style=\"text-align:center;\">\n    202103\n   </td>\n   <td class=\"xl69\" style=\"text-align:center;\">\n    5000\n   </td>\n   <td class=\"xl69\" style=\"text-align:center;\">\n    2427\n   </td>\n   <td class=\"xl69\" style=\"text-align:center;\">\n    2610\n   </td>\n   <td class=\"xl69\" style=\"text-align:center;\">\n    10037\n   </td>\n   <td class=\"xl69\" style=\"text-align:center;\">\n    802.96\n   </td>\n   <td class=\"xl69\" style=\"text-align:center;\">\n    50.19\n   </td>\n   <td class=\"xl69\" style=\"text-align:center;\">\n    693.39\n   </td>\n   <td class=\"xl69\" style=\"text-align:center;\">\n    1546.54\n   </td>\n   <td class=\"xl68\" style=\"text-align:center;\">\n    8490.46\n   </td>\n  </tr>\n </tbody>\n</table>\n<br />"}]
[9,"马南",202103,5000,4135,1041,10176,814.08,50.88,706.1,1571.06,8604.94,"123l@163.com","马南202103工资单",{"$f":"createhtml(邮件内容HTML模板!$B$1,示例文件!$B$5:$L$5,示例文件!B14)","v":"<table border=\"1\" cellpadding=\"0\" cellspacing=\"0\" class=\"\" bordercolor=\"#000000\">\n <tbody>\n  <tr>\n   <td rowspan=\"2\" height=\"50\" class=\"xl66\" width=\"89\" style=\"text-align:center;\">\n    <strong>姓</strong><strong>名</strong>\n   </td>\n   <td rowspan=\"2\" class=\"xl66\" width=\"89\" style=\"text-align:center;\">\n    <strong>月度</strong>\n   </td>\n   <td colspan=\"4\" class=\"xl66\" width=\"336\" style=\"text-align:center;\">\n    <strong>应</strong><span class=\"font7\"><strong>&nbsp;&nbsp;&nbsp; </strong></span><span class=\"font6\"><strong>发</strong></span><span class=\"font7\"><strong>&nbsp;&nbsp;&nbsp; </strong></span><span class=\"font6\"><strong>数</strong></span>\n   </td>\n   <td colspan=\"4\" class=\"xl66\" width=\"307\" style=\"text-align:center;\">\n    <strong>扣</strong><span class=\"font7\"><strong>&nbsp;&nbsp; </strong></span><span class=\"font6\"><strong>除</strong></span><span class=\"font7\"><strong>&nbsp;&nbsp; </strong></span><span class=\"font6\"><strong>数</strong></span>\n   </td>\n   <td rowspan=\"2\" class=\"xl70\" width=\"90\" style=\"text-align:center;\">\n    <strong>实发工资</strong>\n   </td>\n  </tr>\n  <tr>\n   <td height=\"25\" class=\"xl66\" style=\"text-align:center;\">\n    <strong>基本工资</strong>\n   </td>\n   <td class=\"xl66\" style=\"text-align:center;\">\n    <strong>岗位工资</strong>\n   </td>\n   <td class=\"xl66\" style=\"text-align:center;\">\n    <strong>绩效工资</strong>\n   </td>\n   <td class=\"xl66\" style=\"text-align:center;\">\n    <strong>应发小计</strong>\n   </td>\n   <td class=\"xl66\" style=\"text-align:center;\">\n    <strong>养老险</strong>\n   </td>\n   <td class=\"xl66\" style=\"text-align:center;\">\n    <strong>公积金</strong>\n   </td>\n   <td class=\"xl66\" style=\"text-align:center;\">\n    <strong>个税</strong>\n   </td>\n   <td class=\"xl66\" style=\"text-align:center;\">\n    <strong>扣款小计</strong>\n   </td>\n  </tr>\n  <tr>\n   <td height=\"25\" class=\"xl69\" style=\"text-align:center;\">\n    马南\n   </td>\n   <td class=\"xl69\" style=\"text-align:center;\">\n    202103\n   </td>\n   <td class=\"xl69\" style=\"text-align:center;\">\n    5000\n   </td>\n   <td class=\"xl69\" style=\"text-align:center;\">\n    4135\n   </td>\n   <td class=\"xl69\" style=\"text-align:center;\">\n    1041\n   </td>\n   <td class=\"xl69\" style=\"text-align:center;\">\n    10176\n   </td>\n   <td class=\"xl69\" style=\"text-align:center;\">\n    814.08\n   </td>\n   <td class=\"xl69\" style=\"text-align:center;\">\n    50.88\n   </td>\n   <td class=\"xl69\" style=\"text-align:center;\">\n    706.1\n   </td>\n   <td class=\"xl69\" style=\"text-align:center;\">\n    1571.06\n   </td>\n   <td class=\"xl68\" style=\"text-align:center;\">\n    8604.94\n   </td>\n  </tr>\n </tbody>\n</table>\n<br />"}]

{"sheet":"邮件内容HTML模板","index":2,"n_rows":1,"n_cols":2,"rows_kept":1,"cut":false,"hidden":false,"merged":[]}
["工资条HTML模板","<table border=\"1\" cellpadding=\"0\" cellspacing=\"0\" class=\"\" bordercolor=\"#000000\">\n <tbody>\n  <tr>\n   <td rowspan=\"2\" height=\"50\" class=\"xl66\" width=\"89\" style=\"text-align:center;\">\n    <strong>姓</strong><strong>名</strong>\n   </td>\n   <td rowspan=\"2\" class=\"xl66\" width=\"89\" style=\"text-align:center;\">\n    <strong>月度</strong>\n   </td>\n   <td colspan=\"4\" class=\"xl66\" width=\"336\" style=\"text-align:center;\">\n    <strong>应</strong><span class=\"font7\"><strong>&nbsp;&nbsp;&nbsp; </strong></span><span class=\"font6\"><strong>发</strong></span><span class=\"font7\"><strong>&nbsp;&nbsp;&nbsp; </strong></span><span class=\"font6\"><strong>数</strong></span>\n   </td>\n   <td colspan=\"4\" class=\"xl66\" width=\"307\" style=\"text-align:center;\">\n    <strong>扣</strong><span class=\"font7\"><strong>&nbsp;&nbsp; </strong></span><span class=\"font6\"><strong>除</strong></span><span class=\"font7\"><strong>&nbsp;&nbsp; </strong></span><span class=\"font6\"><strong>数</strong></span>\n   </td>\n   <td rowspan=\"2\" class=\"xl70\" width=\"90\" style=\"text-align:center;\">\n    <strong>实发工资</strong>\n   </td>\n  </tr>\n  <tr>\n   <td height=\"25\" class=\"xl66\" style=\"text-align:center;\">\n    <strong>基本工资</strong>\n   </td>\n   <td class=\"xl66\" style=\"text-align:center;\">\n    <strong>岗位工资</strong>\n   </td>\n   <td class=\"xl66\" style=\"text-align:center;\">\n    <strong>绩效工资</strong>\n   </td>\n   <td class=\"xl66\" style=\"text-align:center;\">\n    <strong>应发小计</strong>\n   </td>\n   <td class=\"xl66\" style=\"text-align:center;\">\n    <strong>养老险</strong>\n   </td>\n   <td class=\"xl66\" style=\"text-align:center;\">\n    <strong>公积金</strong>\n   </td>\n   <td class=\"xl66\" style=\"text-align:center;\">\n    <strong>个税</strong>\n   </td>\n   <td class=\"xl66\" style=\"text-align:center;\">\n    <strong>扣款小计</strong>\n   </td>\n  </tr>\n  <tr>\n   <td height=\"25\" class=\"xl69\" style=\"text-align:center;\">\n    【姓名】\n   </td>\n   <td class=\"xl69\" style=\"text-align:center;\">\n    【月度】\n   </td>\n   <td class=\"xl69\" style=\"text-align:center;\">\n    【基本工资】\n   </td>\n   <td class=\"xl69\" style=\"text-align:center;\">\n    【岗位工资】\n   </td>\n   <td class=\"xl69\" style=\"text-align:center;\">\n    【绩效工资】\n   </td>\n   <td class=\"xl69\" style=\"text-align:center;\">\n    【应发小计】\n   </td>\n   <td class=\"xl69\" style=\"text-align:center;\">\n    【养老险】\n   </td>\n   <td class=\"xl69\" style=\"text-align:center;\">\n    【公积金】\n   </td>\n   <td class=\"xl69\" style=\"text-align:center;\">\n    【个税】\n   </td>\n   <td class=\"xl69\" style=\"text-align:center;\">\n    【扣款小计】\n   </td>\n   <td class=\"xl68\" style=\"text-align:center;\">\n    【实发工资】\n   </td>\n  </tr>\n </tbody>\n</table>\n<br />"]

{"sheet":"教程，如何配置OUTLOOK（以QQ邮箱例）","index":3,"n_rows":9,"n_cols":1,"rows_kept":9,"cut":false,"hidden":false,"merged":[]}
["1.outlook配置说明（以QQ邮箱为例）"]
["pop3地址：pop.qq.com 端口号：995"]
["smtp地址：smtp.qq.com  端口号：25"]
["smtp服务器身份验证：勾选 使用与接收服务器相同的配置"]
["勾选 此服务器要求加密链接ssL"]
["邮箱账号：123@qq.com"]
["邮箱密码：一般填授权码"]
["可以看这里的视频教程：https://jingyan.baidu.com/article/ad310e80ab458c5949f49ebc.html"]
["2、配置后的整体参数是这样："]

{"sheet":"教程，如何制作HTML模板","index":4,"n_rows":16,"n_cols":2,"rows_kept":16,"cut":false,"hidden":false,"merged":[]}
[]
[null,"HTML模板制作及获取之教程"]
[]
[null,"一、先把要发的工资条的格式在制作成THML格式，并把其中要动态更新的内容用【】括起来，里面为表头字段，必须严格与表头里的标题一致哦。"]
[]
[null,"制作方法看这个教程："]
[null,"http://52bg.cc/zdxb/?id=133"]
[]
[]
[null,"取得的HTML代码，复制，粘贴到工作表 “邮件内容HTML模板”的B1单元格内，模板即制作完成。"]
[]
[]
[null,"二、如何批量生成工资条的邮件内容，很简单，在上述模板已制作好的情况下，在邮件内容中用通过函数createhtml来自动生成。"]
[null,"函数共三个参数，第一个是模板单元格，第二个是占位符单元格区域，第三个是工资表所在行的第一个单元格。"]
[]
[null,"如果觉得用函数麻烦，也可以用早点下班插件：早点下班-通用》单元格相关》查找替换》模板占位符批量替换  一键快速生成。"]